[Event "Titled Tuesday Blitz February 28 Early 2023"]
[White "Ibadov, Dashgyn"]
[Black "Mesa Cruz, Juan Carlos"]
[WhiteFideId "24107514"]
[BlackFideId "6423400"]
[WhiteElo "2208"]
[BlackElo "2119"]
[Result "0-1"]
[Round "04"]
[TimeControl "180+2"]
[Date "2023.02.28"]
[WhiteClock "0:00:04"]
[BlackClock "0:00:03"]

1. d4 {[%clk 0:03:00]}  Nf6 {[%clk 0:01:49]} 2. Nf3 {[%clk 0:02:59]}  e6 {[%clk 0:01:49]} 3. Bf4 {[%clk 0:02:58]}  d5 {[%clk 0:01:48]} 4. e3 {[%clk 0:02:57]}  c5 {[%clk 0:01:48]} 5. c3 {[%clk 0:02:57]}  Nc6 {[%clk 0:01:47]} 6. Nbd2 {[%clk 0:02:56]}  Bd6 {[%clk 0:01:46]} 7. Ne5 {[%clk 0:02:53]}  Qc7 {[%clk 0:01:46]} 8. Ndf3 {[%clk 0:02:52]}  Nd7 {[%clk 0:01:46]} 9. Nxd7 {[%clk 0:02:42]}  Bxd7 {[%clk 0:01:34]} 10. Bxd6 {[%clk 0:02:38]}  Qxd6 {[%clk 0:01:34]} 11. Bd3 {[%clk 0:02:28]}  e5 {[%clk 0:01:33]} 12. dxe5 {[%clk 0:02:27]}  Nxe5 {[%clk 0:01:33]} 13. Nxe5 {[%clk 0:02:25]}  Qxe5 {[%clk 0:01:34]} 14. O-O {[%clk 0:02:25]}  O-O {[%clk 0:01:33]} 15. Re1 {[%clk 0:02:11]}  b6 {[%clk 0:01:18]} 16. Qc2 {[%clk 0:02:01]}  g6 {[%clk 0:01:17]} 17. c4 {[%clk 0:02:02]}  Bc6 {[%clk 0:01:09]} 18. Rad1 {[%clk 0:01:49]}  Rad8 {[%clk 0:01:06]} 19. Bf1 {[%clk 0:01:43]}  Rfe8 {[%clk 0:00:49]} 20. cxd5 {[%clk 0:01:43]}  Rxd5 {[%clk 0:00:49]} 21. Rxd5 {[%clk 0:01:30]}  Qxd5 {[%clk 0:00:49]} 22. Rd1 {[%clk 0:01:30]}  Qe6 {[%clk 0:00:49]} 23. Bc4 {[%clk 0:01:27]}  Qe7 {[%clk 0:00:45]} 24. Qd3 {[%clk 0:01:21]}  Kg7 {[%clk 0:00:42]} 25. h3 {[%clk 0:01:19]}  Qf6 {[%clk 0:00:36]} 26. b3 {[%clk 0:01:15]}  Re7 {[%clk 0:00:36]} 27. Qd6 {[%clk 0:00:56]}  Rd7 {[%clk 0:00:31]} 28. Qxf6+ {[%clk 0:00:56]}  Kxf6 {[%clk 0:00:31]} 29. Rxd7 {[%clk 0:00:53]}  Bxd7 {[%clk 0:00:32]} 30. f4 {[%clk 0:00:51]}  b5 {[%clk 0:00:28]} 31. Bd3 {[%clk 0:00:47]}  Ke6 {[%clk 0:00:26]} 32. Kf2 {[%clk 0:00:47]}  f5 {[%clk 0:00:26]} 33. e4 {[%clk 0:00:42]}  fxe4 {[%clk 0:00:20]} 34. Bxe4 {[%clk 0:00:43]}  Kd6 {[%clk 0:00:18]} 35. Ke3 {[%clk 0:00:43]}  Bf5 {[%clk 0:00:17]} 36. Bxf5 {[%clk 0:00:31]}  gxf5 {[%clk 0:00:18]} 37. g4 {[%clk 0:00:32]}  Ke6 {[%clk 0:00:17]} 38. g5 {[%clk 0:00:31]}  Kf7 {[%clk 0:00:15]} 39. a4 {[%clk 0:00:09]}  a6 {[%clk 0:00:04]} 40. Kd3 {[%clk 0:00:04]}  Kg6 {[%clk 0:00:02]} 41. Kc3 {[%clk 0:00:04]}  Kh5 {[%clk 0:00:02]} 42. axb5 {[%clk 0:00:03]}  axb5 {[%clk 0:00:03]} 43. b4 {[%clk 0:00:04]}  c4 {[%clk 0:00:03]} 0-1


[Site "https://www.chess.com"]

[Event "Titled Tuesday Blitz February 28 Early 2023"]
[White "Kozlov, Gennady"]
[Black "Kostiukov, Alexandr"]
[WhiteFideId "4191668"]
[BlackFideId "14108100"]
[WhiteElo "2356"]
[BlackElo "2202"]
[Result "1-0"]
[Round "04"]
[TimeControl "180+2"]
[Date "2023.02.28"]
[WhiteClock "0:02:49"]
[BlackClock "0:02:01"]

1. b3 {[%clk 0:03:00]}  g6 {[%clk 0:02:58]} 2. Bb2 {[%clk 0:03:01]}  Nf6 {[%clk 0:02:59]} 3. e3 {[%clk 0:03:01]}  Bg7 {[%clk 0:02:59]} 4. f4 {[%clk 0:03:02]}  O-O {[%clk 0:02:59]} 5. Nf3 {[%clk 0:03:02]}  c5 {[%clk 0:02:59]} 6. Be2 {[%clk 0:03:03]}  d5 {[%clk 0:02:58]} 7. O-O {[%clk 0:03:03]}  Nc6 {[%clk 0:02:53]} 8. Ne5 {[%clk 0:03:03]}  Bd7 {[%clk 0:02:48]} 9. Nxc6 {[%clk 0:03:03]}  Bxc6 {[%clk 0:02:47]} 10. Bf3 {[%clk 0:03:04]}  Qd7 {[%clk 0:02:40]} 11. Qe2 {[%clk 0:03:04]}  Rfe8 {[%clk 0:02:32]} 12. d3 {[%clk 0:03:04]}  d4 {[%clk 0:02:24]} 13. e4 {[%clk 0:03:03]}  e5 {[%clk 0:02:19]} 14. fxe5 {[%clk 0:03:04]}  Rxe5 {[%clk 0:02:19]} 15. Nd2 {[%clk 0:03:05]}  b5 {[%clk 0:02:16]} 16. a4 {[%clk 0:03:04]}  a6 {[%clk 0:02:15]} 17. axb5 {[%clk 0:03:03]}  axb5 {[%clk 0:02:16]} 18. Rxa8+ {[%clk 0:03:04]}  Bxa8 {[%clk 0:02:16]} 19. Ra1 {[%clk 0:03:04]}  Bc6 {[%clk 0:02:14]} 20. Qf2 {[%clk 0:02:59]}  h5 {[%clk 0:02:10]} 21. Qg3 {[%clk 0:02:58]}  Ng4 {[%clk 0:02:06]} 22. Bxg4 {[%clk 0:02:56]}  hxg4 {[%clk 0:02:06]} 23. Nf1 {[%clk 0:02:51]}  Bh6 {[%clk 0:02:01]} 24. Qxe5 {[%clk 0:02:49]} 1-0


[Site "https://www.chess.com"]

[Event "Titled Tuesday Blitz February 28 Early 2023"]
[White "Kalajzic, Ivan"]
[Black "Skaric, Djuro"]
[WhiteFideId "14506378"]
[BlackFideId "934569"]
[WhiteElo "2203"]
[BlackElo "2282"]
[Result "1/2-1/2"]
[Round "04"]
[TimeControl "180+2"]
[Date "2023.02.28"]
[WhiteClock "0:00:05"]
[BlackClock "0:00:18"]

1. b3 {[%clk 0:02:58]}  d6 {[%clk 0:03:00]} 2. Bb2 {[%clk 0:02:58]}  Nf6 {[%clk 0:03:00]} 3. e3 {[%clk 0:02:58]}  g6 {[%clk 0:03:01]} 4. Bxf6 {[%clk 0:02:58]}  exf6 {[%clk 0:02:59]} 5. c4 {[%clk 0:02:59]}  Bg7 {[%clk 0:03:00]} 6. Nc3 {[%clk 0:02:59]}  O-O {[%clk 0:03:01]} 7. g3 {[%clk 0:02:59]}  Nc6 {[%clk 0:03:01]} 8. Bg2 {[%clk 0:02:59]}  f5 {[%clk 0:03:02]} 9. Nge2 {[%clk 0:02:59]}  h6 {[%clk 0:03:01]} 10. O-O {[%clk 0:02:59]}  g5 {[%clk 0:03:02]} 11. d4 {[%clk 0:02:58]}  Ne7 {[%clk 0:03:01]} 12. Qd3 {[%clk 0:02:54]}  Ng6 {[%clk 0:03:00]} 13. f4 {[%clk 0:02:43]}  g4 {[%clk 0:02:53]} 14. e4 {[%clk 0:02:33]}  Ne7 {[%clk 0:02:48]} 15. e5 {[%clk 0:02:31]}  dxe5 {[%clk 0:02:42]} 16. fxe5 {[%clk 0:02:24]}  Bxe5 {[%clk 0:02:36]} 17. Rad1 {[%clk 0:02:24]}  Bg7 {[%clk 0:02:35]} 18. Nf4 {[%clk 0:02:20]}  Nc6 {[%clk 0:02:27]} 19. Nce2 {[%clk 0:02:02]}  Re8 {[%clk 0:02:04]} 20. Nd5 {[%clk 0:01:54]}  Ne7 {[%clk 0:01:57]} 21. Nef4 {[%clk 0:01:43]}  c6 {[%clk 0:01:53]} 22. Nxe7+ {[%clk 0:01:42]}  Qxe7 {[%clk 0:01:52]} 23. d5 {[%clk 0:01:39]}  Qc5+ {[%clk 0:01:41]} 24. Kh1 {[%clk 0:01:34]}  Re3 {[%clk 0:01:36]} 25. Qd2 {[%clk 0:01:34]}  Bc3 {[%clk 0:01:33]} 26. Qc2 {[%clk 0:01:29]}  Bd7 {[%clk 0:01:32]} 27. dxc6 {[%clk 0:01:23]}  Bxc6 {[%clk 0:01:30]} 28. Nd5 {[%clk 0:01:18]}  Bxd5 {[%clk 0:01:18]} 29. Bxd5 {[%clk 0:01:18]}  Qe7 {[%clk 0:00:42]} 30. Qxf5 {[%clk 0:01:15]}  Rf8 {[%clk 0:00:40]} 31. Qg6+ {[%clk 0:01:09]}  Bg7 {[%clk 0:00:36]} 32. Qxg4 {[%clk 0:00:55]}  Qg5 {[%clk 0:00:35]} 33. Qxg5 {[%clk 0:00:54]}  hxg5 {[%clk 0:00:35]} 34. Rde1 {[%clk 0:00:52]}  Rxe1 {[%clk 0:00:33]} 35. Rxe1 {[%clk 0:00:53]}  Bf6 {[%clk 0:00:33]} 36. Bxb7 {[%clk 0:00:47]}  Rd8 {[%clk 0:00:33]} 37. Bd5 {[%clk 0:00:47]}  Kg7 {[%clk 0:00:34]} 38. Kg2 {[%clk 0:00:47]}  a5 {[%clk 0:00:33]} 39. Kf3 {[%clk 0:00:46]}  Kg6 {[%clk 0:00:33]} 40. a3 {[%clk 0:00:41]}  Rb8 {[%clk 0:00:32]} 41. Rb1 {[%clk 0:00:41]}  Rh8 {[%clk 0:00:30]} 42. Kg2 {[%clk 0:00:39]}  Re8 {[%clk 0:00:29]} 43. Bf3 {[%clk 0:00:36]}  Re3 {[%clk 0:00:28]} 44. b4 {[%clk 0:00:35]}  Rxa3 {[%clk 0:00:28]} 45. b5 {[%clk 0:00:35]}  Ra2+ {[%clk 0:00:28]} 46. Kf1 {[%clk 0:00:34]}  Bd4 {[%clk 0:00:26]} 47. Be2 {[%clk 0:00:32]}  Ra1 {[%clk 0:00:18]} 48. Rxa1 {[%clk 0:00:30]}  Bxa1 {[%clk 0:00:18]} 49. c5 {[%clk 0:00:28]}  Bd4 {[%clk 0:00:18]} 50. c6 {[%clk 0:00:26]}  Bb6 {[%clk 0:00:18]} 51. g4 {[%clk 0:00:23]}  Kf6 {[%clk 0:00:18]} 52. Bc4 {[%clk 0:00:22]}  Ke7 {[%clk 0:00:18]} 53. Ke2 {[%clk 0:00:21]}  f6 {[%clk 0:00:18]} 54. Kd3 {[%clk 0:00:21]}  Kd6 {[%clk 0:00:18]} 55. Ke4 {[%clk 0:00:18]}  Kc5 {[%clk 0:00:18]} 56. Bd3 {[%clk 0:00:14]}  a4 {[%clk 0:00:18]} 57. Kf5 {[%clk 0:00:14]}  Bd8 {[%clk 0:00:18]} 58. Ke6 {[%clk 0:00:13]}  a3 {[%clk 0:00:17]} 59. Bb1 {[%clk 0:00:12]}  Kb6 {[%clk 0:00:17]} 60. Kd7 {[%clk 0:00:11]}  Bc7 {[%clk 0:00:17]} 61. h3 {[%clk 0:00:10]}  Be5 {[%clk 0:00:16]} 62. Ba2 {[%clk 0:00:10]}  Bc7 {[%clk 0:00:15]} 63. Ke6 {[%clk 0:00:09]}  Be5 {[%clk 0:00:15]} 64. Kd5 {[%clk 0:00:09]}  Kxb5 {[%clk 0:00:15]} 65. Bb3 {[%clk 0:00:06]}  Kb4 {[%clk 0:00:16]} 66. Ba2 {[%clk 0:00:05]}  Kc3 {[%clk 0:00:16]} 67. Ke6 {[%clk 0:00:05]}  Kb2 {[%clk 0:00:16]} 68. Bd5 {[%clk 0:00:05]}  a2 {[%clk 0:00:16]} 69. Bxa2 {[%clk 0:00:04]}  Kxa2 {[%clk 0:00:16]} 70. Kd7 {[%clk 0:00:02]}  Kb3 {[%clk 0:00:16]} 71. c7 {[%clk 0:00:02]}  Bxc7 {[%clk 0:00:15]} 72. Kxc7 {[%clk 0:00:03]}  Kc4 {[%clk 0:00:16]} 73. Kd7 {[%clk 0:00:04]}  Kd5 {[%clk 0:00:16]} 74. Ke7 {[%clk 0:00:04]}  Ke5 {[%clk 0:00:16]} 75. Kf7 {[%clk 0:00:04]}  f5 {[%clk 0:00:17]} 76. gxf5 {[%clk 0:00:03]}  Kxf5 {[%clk 0:00:17]} 77. Kg7 {[%clk 0:00:04]}  Kf4 {[%clk 0:00:16]} 78. Kh6 {[%clk 0:00:04]}  Kg3 {[%clk 0:00:17]} 79. Kxg5 {[%clk 0:00:05]}  Kxh3 {[%clk 0:00:18]} 1/2-1/2


[Site "https://www.chess.com"]

[Event "Titled Tuesday Blitz February 28 Early 2023"]
[White "Baches Garcia, Guillermo"]
[Black "Ruiz Aguilar, Pablo Alexander"]
[WhiteFideId "2209764"]
[BlackFideId "4401352"]
[WhiteElo "2507"]
[BlackElo "2138"]
[Result "0-1"]
[Round "04"]
[TimeControl "180+2"]
[Date "2023.02.28"]
[WhiteClock "0:00:12"]
[BlackClock "0:00:22"]

1. e4 {[%clk 0:03:00]}  c5 {[%clk 0:02:58]} 2. Nf3 {[%clk 0:03:01]}  e6 {[%clk 0:02:58]} 3. d4 {[%clk 0:03:00]}  cxd4 {[%clk 0:02:59]} 4. Nxd4 {[%clk 0:03:01]}  a6 {[%clk 0:02:59]} 5. c4 {[%clk 0:03:00]}  Qc7 {[%clk 0:02:58]} 6. Nc3 {[%clk 0:03:00]}  b6 {[%clk 0:02:58]} 7. a3 {[%clk 0:02:59]}  Bb7 {[%clk 0:02:59]} 8. Be3 {[%clk 0:02:58]}  Nf6 {[%clk 0:03:00]} 9. f3 {[%clk 0:02:58]}  d6 {[%clk 0:02:59]} 10. Be2 {[%clk 0:02:58]}  Nbd7 {[%clk 0:03:00]} 11. O-O {[%clk 0:02:58]}  Be7 {[%clk 0:03:00]} 12. a4 {[%clk 0:02:58]}  Rc8 {[%clk 0:03:01]} 13. a5 {[%clk 0:02:58]}  O-O {[%clk 0:02:48]} 14. Nb3 {[%clk 0:02:33]}  Rb8 {[%clk 0:02:23]} 15. axb6 {[%clk 0:02:28]}  Nxb6 {[%clk 0:02:23]} 16. Na5 {[%clk 0:02:28]}  Bc8 {[%clk 0:02:22]} 17. Qd2 {[%clk 0:02:21]}  d5 {[%clk 0:01:41]} 18. cxd5 {[%clk 0:02:08]}  exd5 {[%clk 0:01:39]} 19. exd5 {[%clk 0:02:09]}  Bd6 {[%clk 0:01:26]} 20. f4 {[%clk 0:01:56]}  Bb4 {[%clk 0:01:22]} 21. Nc6 {[%clk 0:01:46]}  Nbxd5 {[%clk 0:01:17]} 22. Nxb4 {[%clk 0:01:09]}  Nxb4 {[%clk 0:01:10]} 23. Rac1 {[%clk 0:00:57]}  Rd8 {[%clk 0:01:06]} 24. Qe1 {[%clk 0:00:53]}  Qe7 {[%clk 0:01:04]} 25. Bc4 {[%clk 0:00:48]}  Nd3 {[%clk 0:00:59]} 26. Bxd3 {[%clk 0:00:46]}  Rxd3 {[%clk 0:00:59]} 27. Bf2 {[%clk 0:00:41]}  Qxe1 {[%clk 0:00:52]} 28. Rfxe1 {[%clk 0:00:41]}  Bf5 {[%clk 0:00:33]} 29. Na4 {[%clk 0:00:37]}  h5 {[%clk 0:00:29]} 30. Nc5 {[%clk 0:00:34]}  Rd2 {[%clk 0:00:28]} 31. Nxa6 {[%clk 0:00:30]}  Rbxb2 {[%clk 0:00:28]} 32. Rf1 {[%clk 0:00:19]}  Ng4 {[%clk 0:00:25]} 33. Bg3 {[%clk 0:00:11]}  Rxg2+ {[%clk 0:00:24]} 34. Kh1 {[%clk 0:00:12]}  h4 {[%clk 0:00:22]} 0-1


[Site "https://www.chess.com"]

[Event "Titled Tuesday Blitz February 28 Early 2023"]
[White "Kavutskiy, Konstantin"]
[Black "Vifleemskaia, Svetlana"]
[WhiteFideId "2026384"]
[BlackFideId "4129490"]
[WhiteElo "2369"]
[BlackElo "1930"]
[Result "1/2-1/2"]
[Round "04"]
[TimeControl "180+2"]
[Date "2023.02.28"]
[WhiteClock "0:00:38"]
[BlackClock "0:00:17"]

1. d4 {[%clk 0:03:00]}  Nf6 {[%clk 0:02:59]} 2. Bg5 {[%clk 0:03:01]}  Ne4 {[%clk 0:02:58]} 3. Bf4 {[%clk 0:03:01]}  d5 {[%clk 0:02:59]} 4. Nd2 {[%clk 0:03:00]}  Nxd2 {[%clk 0:02:59]} 5. Qxd2 {[%clk 0:03:00]}  c5 {[%clk 0:03:00]} 6. e3 {[%clk 0:03:00]}  Nc6 {[%clk 0:03:00]} 7. Nf3 {[%clk 0:03:00]}  Bf5 {[%clk 0:02:53]} 8. Bb5 {[%clk 0:02:59]}  e6 {[%clk 0:02:53]} 9. Ne5 {[%clk 0:02:55]}  Rc8 {[%clk 0:02:53]} 10. O-O {[%clk 0:02:53]}  Bd6 {[%clk 0:02:43]} 11. c3 {[%clk 0:02:37]}  O-O {[%clk 0:02:40]} 12. a3 {[%clk 0:02:20]}  Nxe5 {[%clk 0:02:33]} 13. Bxe5 {[%clk 0:02:16]}  f6 {[%clk 0:02:28]} 14. Bg3 {[%clk 0:02:10]}  a6 {[%clk 0:02:27]} 15. Ba4 {[%clk 0:02:09]}  b5 {[%clk 0:02:26]} 16. Bb3 {[%clk 0:02:06]}  Bxg3 {[%clk 0:02:14]} 17. hxg3 {[%clk 0:02:05]}  Qd6 {[%clk 0:02:10]} 18. Rae1 {[%clk 0:02:02]}  c4 {[%clk 0:01:54]} 19. Bd1 {[%clk 0:02:00]}  Bd3 {[%clk 0:01:53]} 20. Be2 {[%clk 0:02:00]}  Bxe2 {[%clk 0:01:53]} 21. Qxe2 {[%clk 0:02:01]}  f5 {[%clk 0:01:54]} 22. Qf3 {[%clk 0:01:59]}  a5 {[%clk 0:01:52]} 23. Qf4 {[%clk 0:01:59]}  Rc6 {[%clk 0:01:48]} 24. Kh2 {[%clk 0:01:56]}  Rb8 {[%clk 0:01:47]} 25. Rh1 {[%clk 0:01:52]}  Qxf4 {[%clk 0:01:45]} 26. exf4 {[%clk 0:01:49]}  b4 {[%clk 0:01:45]} 27. axb4 {[%clk 0:01:48]}  axb4 {[%clk 0:01:45]} 28. Re3 {[%clk 0:01:48]}  Ra6 {[%clk 0:01:38]} 29. Rhe1 {[%clk 0:01:47]}  Kf7 {[%clk 0:01:38]} 30. Kh3 {[%clk 0:01:46]}  bxc3 {[%clk 0:01:27]} 31. bxc3 {[%clk 0:01:47]}  Rb2 {[%clk 0:01:26]} 32. f3 {[%clk 0:01:45]}  h5 {[%clk 0:00:56]} 33. R3e2 {[%clk 0:01:16]}  Rxe2 {[%clk 0:00:49]} 34. Rxe2 {[%clk 0:01:17]}  Ra3 {[%clk 0:00:47]} 35. Rc2 {[%clk 0:01:09]}  Kf6 {[%clk 0:00:43]} 36. Kh4 {[%clk 0:01:09]}  Kg6 {[%clk 0:00:41]} 37. g4 {[%clk 0:01:08]}  hxg4 {[%clk 0:00:40]} 38. fxg4 {[%clk 0:01:09]}  fxg4 {[%clk 0:00:40]} 39. Kxg4 {[%clk 0:01:10]}  Kf6 {[%clk 0:00:40]} 40. g3 {[%clk 0:01:05]}  g6 {[%clk 0:00:38]} 41. Rc1 {[%clk 0:01:02]}  Rb3 {[%clk 0:00:37]} 42. Rc2 {[%clk 0:01:01]}  Ra3 {[%clk 0:00:37]} 43. Kf3 {[%clk 0:00:58]}  Rb3 {[%clk 0:00:19]} 44. g4 {[%clk 0:00:58]}  g5 {[%clk 0:00:19]} 45. Ke3 {[%clk 0:00:53]}  Ra3 {[%clk 0:00:17]} 46. Kf3 {[%clk 0:00:49]}  Rb3 {[%clk 0:00:17]} 47. Ke3 {[%clk 0:00:38]}  Ra3 {[%clk 0:00:17]} 48. Kf3 {[%clk 0:00:38]}  Rb3 {[%clk 0:00:17]} 1/2-1/2


[Site "https://www.chess.com"]

[Event "Titled Tuesday Blitz February 28 Early 2023"]
[White "Liu, Casper"]
[Black "Nguyen Hong Nhung"]
[WhiteFideId "1454153"]
[BlackFideId "12412201"]
[WhiteElo "2221"]
[BlackElo "1904"]
[Result "1-0"]
[Round "04"]
[TimeControl "180+2"]
[Date "2023.02.28"]
[WhiteClock "0:00:25"]
[BlackClock "0:00:04"]

1. d4 {[%clk 0:02:53]}  Nf6 {[%clk 0:02:56]} 2. c4 {[%clk 0:02:53]}  c5 {[%clk 0:02:55]} 3. d5 {[%clk 0:02:53]}  b5 {[%clk 0:02:56]} 4. cxb5 {[%clk 0:02:53]}  a6 {[%clk 0:02:57]} 5. e4 {[%clk 0:02:54]}  Nxe4 {[%clk 0:02:41]} 6. Qf3 {[%clk 0:02:54]}  Nf6 {[%clk 0:02:33]} 7. d6 {[%clk 0:02:54]}  Ra7 {[%clk 0:02:33]} 8. bxa6 {[%clk 0:02:55]}  exd6 {[%clk 0:02:30]} 9. Bg5 {[%clk 0:02:54]}  Be7 {[%clk 0:02:30]} 10. Nc3 {[%clk 0:02:53]}  Nxa6 {[%clk 0:02:27]} 11. Bd3 {[%clk 0:02:49]}  Nb4 {[%clk 0:02:25]} 12. Bb1 {[%clk 0:02:49]}  Bb7 {[%clk 0:02:24]} 13. Qh3 {[%clk 0:02:43]}  h6 {[%clk 0:02:19]} 14. Nge2 {[%clk 0:02:42]}  O-O {[%clk 0:02:12]} 15. Bd2 {[%clk 0:02:23]}  Qa8 {[%clk 0:02:02]} 16. O-O {[%clk 0:02:23]}  Bxg2 {[%clk 0:01:56]} 17. Qxg2 {[%clk 0:02:22]}  Qb8 {[%clk 0:01:50]} 18. a3 {[%clk 0:02:21]}  Nc6 {[%clk 0:01:48]} 19. Bxh6 {[%clk 0:02:22]}  Ne8 {[%clk 0:01:45]} 20. Qe4 {[%clk 0:02:15]}  f5 {[%clk 0:01:40]} 21. Qg2 {[%clk 0:02:10]}  Qxb2 {[%clk 0:01:34]} 22. Qg6 {[%clk 0:01:44]}  Bf6 {[%clk 0:01:16]} 23. Ra2 {[%clk 0:01:27]}  Qb3 {[%clk 0:01:09]} 24. Rd2 {[%clk 0:01:25]}  c4 {[%clk 0:00:57]} 25. Nd5 {[%clk 0:01:06]}  Ra8 {[%clk 0:00:35]} 26. Bxf5 {[%clk 0:01:04]}  Ne5 {[%clk 0:00:29]} 27. Qh7+ {[%clk 0:01:01]}  Kf7 {[%clk 0:00:29]} 28. Nef4 {[%clk 0:01:01]}  Qf3 {[%clk 0:00:19]} 29. Re1 {[%clk 0:00:54]}  Rxa3 {[%clk 0:00:12]} 30. Ng6 {[%clk 0:00:42]}  Qxf5 {[%clk 0:00:04]} 31. Nxe5+ {[%clk 0:00:42]}  Qxe5 {[%clk 0:00:05]} 32. Rxe5 {[%clk 0:00:42]}  Ra1+ {[%clk 0:00:05]} 33. Kg2 {[%clk 0:00:41]}  Bxe5 {[%clk 0:00:06]} 34. Bf4 {[%clk 0:00:39]}  Bf6 {[%clk 0:00:06]} 35. Re2 {[%clk 0:00:30]}  Ra5 {[%clk 0:00:03]} 36. Qh5+ {[%clk 0:00:27]}  Kg8 {[%clk 0:00:03]} 37. Nxf6+ {[%clk 0:00:28]}  Nxf6 {[%clk 0:00:03]} 38. Qxa5 {[%clk 0:00:28]}  c3 {[%clk 0:00:03]} 39. Bxd6 {[%clk 0:00:28]}  Rc8 {[%clk 0:00:03]} 40. Rc2 {[%clk 0:00:27]}  Ne4 {[%clk 0:00:03]} 41. Bf4 {[%clk 0:00:27]}  Nf6 {[%clk 0:00:03]} 42. Rxc3 {[%clk 0:00:26]}  Rf8 {[%clk 0:00:03]} 43. Qa2+ {[%clk 0:00:26]}  Kh7 {[%clk 0:00:03]} 44. Rh3+ {[%clk 0:00:26]}  Kg6 {[%clk 0:00:03]} 45. Qc4 {[%clk 0:00:26]}  d5 {[%clk 0:00:03]} 46. Qd3+ {[%clk 0:00:26]}  Kf7 {[%clk 0:00:04]} 47. Be5 {[%clk 0:00:25]}  Ke6 {[%clk 0:00:03]} 48. Bxf6 {[%clk 0:00:26]}  Rxf6 {[%clk 0:00:04]} 49. Rh5 {[%clk 0:00:25]} 1-0


[Site "https://www.chess.com"]

[Event "Titled Tuesday Blitz February 28 Early 2023"]
[White "Awoki, Daniel Teidi"]
[Black "Bettalli, Francesco"]
[WhiteFideId "2100827"]
[BlackFideId "2816453"]
[WhiteElo "2083"]
[BlackElo "2216"]
[Result "1/2-1/2"]
[Round "04"]
[TimeControl "180+2"]
[Date "2023.02.28"]
[WhiteClock "0:00:08"]
[BlackClock "0:02:02"]

1. e4 {[%clk 0:02:53]}  e5 {[%clk 0:02:59]} 2. Nf3 {[%clk 0:02:53]}  Nf6 {[%clk 0:02:59]} 3. d4 {[%clk 0:02:46]}  Nxe4 {[%clk 0:02:58]} 4. Bd3 {[%clk 0:02:46]}  d5 {[%clk 0:02:58]} 5. Nxe5 {[%clk 0:02:47]}  Bd6 {[%clk 0:02:58]} 6. O-O {[%clk 0:02:46]}  O-O {[%clk 0:02:57]} 7. Nc3 {[%clk 0:02:43]}  Nxc3 {[%clk 0:02:57]} 8. bxc3 {[%clk 0:02:43]}  f6 {[%clk 0:02:57]} 9. Qh5 {[%clk 0:02:29]}  f5 {[%clk 0:02:53]} 10. Bg5 {[%clk 0:02:24]}  Qe8 {[%clk 0:02:53]} 11. Qxe8 {[%clk 0:02:13]}  Rxe8 {[%clk 0:02:54]} 12. f4 {[%clk 0:02:11]}  Nd7 {[%clk 0:02:52]} 13. Bxf5 {[%clk 0:01:50]}  Nxe5 {[%clk 0:02:38]} 14. fxe5 {[%clk 0:01:50]}  Bxf5 {[%clk 0:02:39]} 15. Rxf5 {[%clk 0:01:50]}  Ba3 {[%clk 0:02:40]} 16. Rb1 {[%clk 0:01:40]}  b6 {[%clk 0:02:38]} 17. Rbf1 {[%clk 0:01:28]}  c5 {[%clk 0:02:37]} 18. Rf7 {[%clk 0:01:22]}  cxd4 {[%clk 0:02:34]} 19. cxd4 {[%clk 0:01:23]}  Bb2 {[%clk 0:02:35]} 20. Be3 {[%clk 0:01:22]}  Rac8 {[%clk 0:02:35]} 21. Rxa7 {[%clk 0:01:17]}  Rf8 {[%clk 0:02:30]} 22. Rxf8+ {[%clk 0:01:11]}  Kxf8 {[%clk 0:02:31]} 23. Rb7 {[%clk 0:00:43]}  Rxc2 {[%clk 0:02:30]} 24. Rxb6 {[%clk 0:00:43]}  Re2 {[%clk 0:02:30]} 25. Bf2 {[%clk 0:00:22]}  Bc3 {[%clk 0:02:15]} 26. a4 {[%clk 0:00:14]}  Ra2 {[%clk 0:02:14]} 27. h3 {[%clk 0:00:12]}  Rxa4 {[%clk 0:02:11]} 28. Rd6 {[%clk 0:00:10]}  Bxd4 {[%clk 0:02:09]} 29. Bxd4 {[%clk 0:00:08]}  Rxd4 {[%clk 0:02:10]} 30. Kf2 {[%clk 0:00:07]}  Ke7 {[%clk 0:02:10]} 31. Kf3 {[%clk 0:00:07]}  Rd3+ {[%clk 0:02:09]} 32. Kf4 {[%clk 0:00:06]}  Rd2 {[%clk 0:02:09]} 33. Kf3 {[%clk 0:00:06]}  d4 {[%clk 0:02:03]} 34. h4 {[%clk 0:00:05]}  d3 {[%clk 0:02:03]} 35. g3 {[%clk 0:00:04]}  Rd1 {[%clk 0:02:00]} 36. Ke3 {[%clk 0:00:04]}  Re1+ {[%clk 0:02:00]} 37. Kxd3 {[%clk 0:00:04]}  Rxe5 {[%clk 0:02:01]} 38. Rd4 {[%clk 0:00:03]}  Rb5 {[%clk 0:02:01]} 39. Ke4 {[%clk 0:00:03]}  Rb3 {[%clk 0:02:01]} 40. Kf4 {[%clk 0:00:04]}  Ke6 {[%clk 0:02:01]} 41. Re4+ {[%clk 0:00:04]}  Kf6 {[%clk 0:02:01]} 42. Re3 {[%clk 0:00:04]}  Rb4+ {[%clk 0:02:00]} 43. Kf3 {[%clk 0:00:05]}  h5 {[%clk 0:01:59]} 44. Rd3 {[%clk 0:00:05]}  g6 {[%clk 0:01:59]} 45. Re3 {[%clk 0:00:06]}  Kf5 {[%clk 0:01:58]} 46. Rd3 {[%clk 0:00:06]}  Rb5 {[%clk 0:01:58]} 47. Re3 {[%clk 0:00:06]}  Rd5 {[%clk 0:01:58]} 48. Rc3 {[%clk 0:00:06]}  g5 {[%clk 0:01:58]} 49. hxg5 {[%clk 0:00:06]}  Kxg5 {[%clk 0:01:58]} 50. Rb3 {[%clk 0:00:07]}  Rf5+ {[%clk 0:01:59]} 51. Kg2 {[%clk 0:00:06]}  Ra5 {[%clk 0:02:00]} 52. Kf3 {[%clk 0:00:06]}  Rc5 {[%clk 0:01:59]} 53. Re3 {[%clk 0:00:06]}  Rf5+ {[%clk 0:01:57]} 54. Kg2 {[%clk 0:00:06]}  Rf8 {[%clk 0:01:57]} 55. Rd3 {[%clk 0:00:06]}  Rf5 {[%clk 0:01:55]} 56. Kh3 {[%clk 0:00:05]}  Ra5 {[%clk 0:01:56]} 57. Rc3 {[%clk 0:00:05]}  Rb5 {[%clk 0:01:56]} 58. Rd3 {[%clk 0:00:05]}  Rc5 {[%clk 0:01:55]} 59. Re3 {[%clk 0:00:06]}  Rd5 {[%clk 0:01:55]} 60. Rb3 {[%clk 0:00:06]}  Kf5 {[%clk 0:01:56]} 61. Ra3 {[%clk 0:00:06]}  Ke4 {[%clk 0:01:56]} 62. Ra4+ {[%clk 0:00:06]}  Kf3 {[%clk 0:01:57]} 63. Ra3+ {[%clk 0:00:06]}  Kf2 {[%clk 0:01:57]} 64. Ra2+ {[%clk 0:00:07]}  Ke3 {[%clk 0:01:57]} 65. Ra3+ {[%clk 0:00:07]}  Ke4 {[%clk 0:01:58]} 66. Ra4+ {[%clk 0:00:08]}  Kf5 {[%clk 0:01:59]} 67. Rf4+ {[%clk 0:00:08]}  Kg5 {[%clk 0:01:59]} 68. Rf3 {[%clk 0:00:08]}  Rf5 {[%clk 0:02:00]} 69. Rxf5+ {[%clk 0:00:08]}  Kxf5 {[%clk 0:02:01]} 70. Kh4 {[%clk 0:00:07]}  Kg6 {[%clk 0:02:02]} 71. g4 {[%clk 0:00:07]}  hxg4 {[%clk 0:02:02]} 72. Kxg4 {[%clk 0:00:08]} 1/2-1/2


[Site "https://www.chess.com"]